fUSD/lending_fUSD_20240526
["ID","MTS","AMOUNT","RATE_DAILY","PERIOD"]
[327965532,1716726646956,-772.31,0.00027397,4]
[327965533,1716726646966,-500.0,0.00027397,4]
[327965534,1716726646975,-151.37211504,0.00027397,4]
[327965535,1716726646985,-1152.0,0.00027397,4]
[327965536,1716726646994,-503.81832118,0.00027397,4]
[327965537,1716726647003,-500.0,0.00027397,4]
[327965538,1716726647014,-500.0,0.00027397,4]
[327965539,1716726647024,-968.66,0.00027397,4]
[327965540,1716726647034,-1025.7,0.00027397,4]
[327965541,1716726647043,-500.0,0.00027397,4]
[327965542,1716726647053,-2317.75,0.00027397,4]
[327965543,1716726647062,-881.77,0.00027397,4]
[327965544,1716726647072,-500.0,0.00027397,4]
[327965545,1716726647081,-255.49582356,0.00027397,4]
[327965546,1716726647090,-9133.15,0.00027397,4]
[327965547,1716726647100,-500.0,0.00027397,4]
[327965548,1716726647110,-771.31,0.00027397,4]
[327965549,1716726647118,-1381.37,0.00027397,4]
[327965550,1716726647127,-1167.0,0.00027397,4]
[327965551,1716726647136,-774.73,0.00027397,4]
[327965552,1716726647145,-500.0,0.00027397,4]
[327965553,1716726647155,-500.0,0.00027397,4]
[327965554,1716726647164,-901.37,0.00027397,4]
[327965555,1716726647174,-350.53223169,0.00027397,4]
[327965556,1716726647182,-500.0,0.00027397,4]
[327965557,1716726647191,-500.0,0.00027397,4]
[327965558,1716726647201,-1145.66,0.00027397,4]
[327965559,1716726647210,-727.43,0.00027397,4]
[327965560,1716726647219,-1868.34,0.00027397,4]
[327965561,1716726647228,-1089.85,0.00027397,4]
[327965562,1716726647237,-500.0,0.00027397,4]
[327965563,1716726647246,-500.0,0.00027397,4]
[327965564,1716726647256,-592.74,0.00027397,4]
[327965565,1716726647266,-3521.87,0.00027397,4]
[327965566,1716726647276,-500.0,0.00027397,4]
[327965567,1716726647286,-500.0,0.00027397,4]
[327965568,1716726647296,-1945.48,0.00027397,4]
[327965569,1716726647305,-500.0,0.00027397,4]
[327965570,1716726647314,-590.02,0.00027397,4]
[327965571,1716726647324,-1265.8,0.00027397,4]
[327965572,1716726647333,-500.0,0.00027397,4]
[327965573,1716726647343,-500.0,0.00027397,4]
[327965574,1716726647352,-500.0,0.00027397,4]
[327965575,1716726647362,-3778.36,0.00027397,4]
[327965576,1716726647372,-361.90155034,0.00027397,4]
[327965577,1716726647381,-999.06,0.00027397,4]
[327965578,1716726647391,-500.0,0.00027397,4]
[327965579,1716726647400,-500.0,0.00027397,4]
[327965580,1716726647409,-500.0,0.00027397,4]
[327965581,1716726647419,-796.74,0.00027397,4]
[327965582,1716726647428,-500.0,0.00027397,4]
[327965583,1716726647437,-659.36,0.00027397,4]
[327965584,1716726647446,-581.14,0.00027397,4]
[327965585,1716726647457,-500.0,0.00027397,4]
[327965586,1716726647468,-814.25,0.00027397,4]
[327965587,1716726647477,-561.25195712,0.00027397,4]
[327965588,1716726647487,-500.0,0.00027397,4]
[327965589,1716726647496,-607.52,0.00027397,4]
[327965590,1716726647508,-1590.91,0.00027397,4]
[327965591,1716726647518,-500.0,0.00027397,4]
[327965592,1716726647528,-4326.72,0.00027397,4]
[327965593,1716726647538,-500.0,0.00027397,4]
[327965594,1716726647547,-862.83,0.00027397,4]
[327965595,1716726647557,-800.82,0.00027397,4]
[327965596,1716726647566,-500.0,0.00027397,4]
[327965597,1716726647575,-1930.56,0.00027397,4]
[327965598,1716726647585,-500.0,0.00027397,4]
[327965599,1716726647594,-500.0,0.00027397,4]
[327965600,1716726647603,-500.0,0.00027397,4]
[327965601,1716726647612,-500.0,0.00027397,4]
[327965602,1716726647621,-1987.82,0.00027397,4]
[327965603,1716726647632,-954.19,0.00027397,4]
[327965604,1716726647641,-500.0,0.00027397,4]
[327965605,1716726647650,-500.0,0.00027397,4]
[327965606,1716726647659,-975.91,0.00027397,4]
[327965607,1716726647669,-500.0,0.00027397,4]
[327965608,1716726647678,-738.99,0.00027397,4]
[327965609,1716726647687,-3196.06,0.00027397,4]
[327965610,1716726647696,-3196.06,0.00027397,4]
[327965611,1716726647705,-1441.7,0.00027397,4]
[327965612,1716726647714,-544.32,0.00027397,4]
[327965613,1716726647724,-500.0,0.00027397,4]
[327965614,1716726647734,-372.53775593,0.00027397,4]
[327965615,1716726647743,-1062.05,0.00027397,4]
[327965616,1716726647752,-251.45771932,0.00027397,4]
[327965617,1716726647762,-642.47,0.00027397,4]
[327965618,1716726647772,-500.0,0.00027397,4]
[327965619,1716726647781,-1254.13,0.00027397,4]
[327965620,1716726647791,-500.0,0.00027397,4]
[327965621,1716726647800,-529.71,0.00027397,4]
[327965622,1716726647809,-1691.87,0.00027397,4]
[327965623,1716726647818,-1340.06,0.00027397,4]
[327965624,1716726647827,-593.89,0.00027397,4]
[327965625,1716726647836,-1257.54,0.00027397,4]
[327965626,1716726647845,-500.0,0.00027397,4]
[327965627,1716726647854,-2117.85,0.00027397,4]
[327965628,1716726647864,-500.0,0.00027397,4]
[327965629,1716726647873,-1347.74,0.00027397,4]
[327965630,1716726647882,-500.0,0.00027397,4]
[327965631,1716726647892,-1205.79,0.00027397,4]
[327965632,1716726647901,-724.99,0.00027397,4]
[327965633,1716726647911,-609.02,0.00027397,4]
[327965634,1716726647920,-1598.98,0.00027397,4]
[327965635,1716726647929,-1095.74,0.00027397,4]
[327965636,1716726647939,-500.0,0.00027397,4]
[327965637,1716726647949,-542.01,0.00027397,4]
[327965638,1716726647958,-347.53125392,0.00027397,4]
[327965639,1716726647967,-1432.81,0.00027397,4]
[327965640,1716726647978,-879.0,0.00027397,4]
[327965641,1716726647987,-1533.8,0.00027397,4]
[327965642,1716726647996,-500.0,0.00027397,4]
[327965643,1716726648006,-1527.33,0.00027397,4]
[327965644,1716726648016,-500.0,0.00027397,4]
[327965645,1716726648025,-5751.57,0.00027397,4]
[327965646,1716726648037,-500.0,0.00027397,4]
[327965647,1716726648046,-2414.44,0.00027397,4]
[327965648,1716726648056,-500.0,0.00027397,4]
[327965649,1716726648065,-500.0,0.00027397,4]
[327965650,1716726648074,-600.84,0.00027397,4]
[327965651,1716726648084,-1046.61,0.00027397,4]
[327965652,1716726648094,-1425.98,0.00027397,4]
[327965653,1716726648103,-500.0,0.00027397,4]
[327965654,1716726648112,-1675.63,0.00027397,4]
[327965655,1716726648122,-871.39,0.00027397,4]
[327965656,1716726648131,-3554.45,0.00027397,4]
[327965657,1716726648141,-1587.44,0.00027397,4]
[327965658,1716726648151,-500.0,0.00027397,4]
[327965659,1716726648161,-712.31,0.00027397,4]
[327965660,1716726648170,-1622.74,0.00027397,4]
[327965661,1716726648180,-842.59,0.00027397,4]
[327965662,1716726648189,-893.2,0.00027397,4]
[327965663,1716726648199,-527.00851613,0.00027397,4]
[327965664,1716726648208,-500.0,0.00027397,4]
[327965665,1716726648219,-1368.43,0.00027397,4]
[327965666,1716726648229,-1056.86,0.00027397,4]
[327965667,1716726648239,-844.35,0.00027397,4]
[327965668,1716726648248,-999.05,0.00027397,4]
[327965669,1716726648258,-500.0,0.00027397,4]
[327965670,1716726648268,-1514.36,0.00027397,4]
[327965671,1716726648278,-1302.27,0.00027397,4]
[327965672,1716726648287,-500.0,0.00027397,4]
[327965673,1716726648295,-500.0,0.00027397,4]
[327965674,1716726648305,-1168.5,0.00027397,4]
[327965675,1716726648314,-500.0,0.00027397,4]
[327965676,1716726648324,-744.61,0.00027397,4]
[327965677,1716726648335,-500.0,0.00027397,4]
[327965678,1716726648346,-668.27,0.00027397,4]
[327965679,1716726648356,-688.25,0.00027397,4]
[327965680,1716726648365,-500.0,0.00027397,4]
[327965681,1716726648374,-12808.04,0.00027397,4]
[327965682,1716726648384,-1753.43,0.00027397,4]
[327965683,1716726648394,-743.78,0.00027397,4]
[327965684,1716726648405,-1296.02,0.00027397,4]
[327965685,1716726648416,-1935.26,0.00027397,4]
[327965686,1716726648426,-1350.29,0.00027397,4]
[327965687,1716726648436,-867.66,0.00027397,4]
[327965688,1716726648446,-842.24,0.00027397,4]
[327965689,1716726648457,-500.0,0.00027397,4]
[327965690,1716726648470,-2713.25,0.00027397,4]
[327965691,1716726648480,-500.0,0.00027397,4]
[327965692,1716726648490,-2172.85,0.00027397,4]
[327965693,1716726648500,-1538.51,0.00027397,4]
[327965694,1716726648509,-1252.93,0.00027397,4]
[327965695,1716726648520,-6095.74,0.00027397,4]
[327965696,1716726648531,-602.98,0.00027397,4]
[327965697,1716726648543,-1281.4,0.00027397,4]
[327965698,1716726648553,-536.62703077,0.00027397,4]
[327965699,1716726648564,-517.84,0.00027397,4]
[327965700,1716726648573,-967.13,0.00027397,4]
[327965701,1716726648583,-500.0,0.00027397,4]
[327965702,1716726648591,-500.0,0.00027397,4]
[327965703,1716726648601,-838.0,0.00027397,4]
[327965704,1716726648611,-500.0,0.00027397,4]
[327965705,1716726648620,-1316.87,0.00027397,4]
[327965706,1716726648631,-1328.58,0.00027397,4]
[327965707,1716726648641,-1041.7,0.00027397,4]
[327965708,1716726648651,-500.0,0.00027397,4]
[327965709,1716726648660,-864.28,0.00027397,4]
[327965710,1716726648669,-500.0,0.00027397,4]
[327965711,1716726648679,-500.0,0.00027397,4]
[327965712,1716726648688,-961.04,0.00027397,4]
[327965713,1716726648697,-500.0,0.00027397,4]
[327965714,1716726648706,-521.42710747,0.00027397,4]
[327965715,1716726648715,-500.0,0.00027397,4]
[327965716,1716726648725,-644.98087467,0.00027397,4]
[327965717,1716726648734,-691.79,0.00027397,4]
[327965718,1716726648743,-2862.83,0.00027397,4]
[327965719,1716726648752,-567.52,0.00027397,4]
[327965720,1716726648761,-1530.36,0.00027397,4]
[327965721,1716726648771,-500.0,0.00027397,4]
[327965722,1716726648780,-500.0,0.00027397,4]
[327965723,1716726648789,-1793.03,0.00027397,4]
[327965724,1716726648798,-500.0,0.00027397,4]
[327965725,1716726648807,-500.0,0.00027397,4]
[327965726,1716726648816,-19850.0,0.00027397,2]
[327965727,1716726648826,-970.7,0.00027397,4]
[327965728,1716726648834,-500.0,0.00027397,4]
[327965729,1716726648844,-511.01,0.00027397,4]
[327965730,1716726648852,-531.47429183,0.00027397,4]
[327965731,1716726648861,-592.12,0.00027397,4]
[327965732,1716726648871,-250.58243994,0.00027397,7]
[327965733,1716726648881,-186.97997371,0.00027405,2]
[327965734,1716726648890,-2072.0378671,0.00027457,2]
[327965735,1716726648899,-20180.5519578,0.00027457,2]
[327965736,1716726648908,-3124.8206117,0.00027476,2]
[327965737,1716726648917,-497.9811449,0.00027476,2]
[327965738,1716726648926,-214.59492178,0.00027554,2]
[327965739,1716726648936,-5552.64588132,0.00027571,2]
[327965740,1716726648945,-165.4292042,0.00027571,2]
[327965741,1716726648955,-1068.69863059,0.00027571,2]
[327965742,1716726648964,-152.05,0.00027641,2]
[327965743,1716726648975,-3196.06,0.00027669,4]
[327965744,1716726648984,-3196.06,0.00027669,4]
[327965745,1716726648994,-378.0,0.00027669,5]
[327965746,1716726649003,-625.0,0.0002767,4]
[327965747,1716726649015,-625.0,0.0002767,4]
[327965748,1716726649024,-488.259841,0.0002767,7]
[327965749,1716726649033,-488.259841,0.0002767,7]
[327965750,1716726649044,-189.244792,0.0002767,7]
[327965751,1716726649055,-3196.06,0.0002767,4]
[327965752,1716726649064,-3196.06,0.0002767,4]
[327965753,1716726649075,-357611.5073802,0.00027671,9]
[327965754,1716726649085,-500.0,0.00027671,4]
[327965755,1716726649095,-339.15926306,0.00027671,4]
[327965756,1716726649104,-500.0,0.00027671,4]
[327965757,1716726649113,-500.0,0.00027671,4]
[327965758,1716726649123,-500.0,0.00027671,4]
[327965759,1716726649132,-500.0,0.00027671,4]
[327965760,1716726649142,-500.0,0.00027671,4]
[327965761,1716726649151,-190.88983889,0.00027671,4]
[327965762,1716726649160,-500.0,0.00027671,4]
[327965763,1716726649170,-500.0,0.00027671,4]
[327965764,1716726649180,-500.0,0.00027671,4]
[327965765,1716726649189,-500.0,0.00027671,4]
[327965766,1716726649200,-500.0,0.00027671,4]
[327965767,1716726649210,-500.0,0.00027671,4]
[327965768,1716726649221,-589.05,0.00027671,4]
[327965769,1716726649231,-500.0,0.00027671,4]
[327965770,1716726649240,-552.44900358,0.00027671,4]
[327965771,1716726649250,-500.0,0.00027671,4]
[327965772,1716726649259,-500.0,0.00027671,4]
[327965773,1716726649269,-500.0,0.00027671,4]
[327965774,1716726649279,-500.0,0.00027671,4]
[327965775,1716726649289,-500.0,0.00027671,4]
[327965776,1716726649298,-500.0,0.00027671,4]
[327965777,1716726649307,-484.68830288,0.00027671,4]
[327965778,1716726649317,-500.0,0.00027671,4]
[327965779,1716726649327,-500.0,0.00027671,4]
[327965780,1716726649336,-500.0,0.00027671,4]
[327965781,1716726649345,-500.0,0.00027671,4]
[327965782,1716726649354,-500.0,0.00027671,4]
[327965783,1716726649364,-500.0,0.00027671,4]
[327965784,1716726649373,-500.0,0.00027671,4]
[327965785,1716726649382,-500.0,0.00027671,4]
[327965786,1716726649391,-738.56,0.00027671,4]
[327965787,1716726649400,-500.0,0.00027671,4]
[327965788,1716726649409,-500.0,0.00027671,4]
[327965789,1716726649419,-500.0,0.00027671,4]
[327965790,1716726649429,-500.0,0.00027671,4]
[327965791,1716726649438,-500.0,0.00027671,4]
[327965792,1716726649447,-500.0,0.00027671,4]
[327965793,1716726649458,-500.0,0.00027671,4]
[327965794,1716726649469,-500.0,0.00027671,4]
[327965795,1716726649479,-500.0,0.00027671,4]
[327965796,1716726649488,-500.0,0.00027671,4]
[327965797,1716726649497,-500.0,0.00027671,4]
[327965798,1716726649508,-500.0,0.00027671,4]
[327965799,1716726649519,-500.0,0.00027671,4]
[327965800,1716726649528,-202.25367196,0.00027671,4]
[327965801,1716726649540,-500.0,0.00027671,4]
[327965802,1716726649550,-500.0,0.00027671,4]
[327965803,1716726649559,-500.0,0.00027671,4]
[327965804,1716726649569,-500.0,0.00027671,4]
[327965805,1716726649578,-599.44,0.00027671,4]
[327965806,1716726649587,-659.18,0.00027671,4]
[327965807,1716726649596,-500.0,0.00027671,4]
[327965808,1716726649607,-500.0,0.00027671,4]
[327965809,1716726649616,-500.0,0.00027671,4]
[327965810,1716726649626,-500.0,0.00027671,4]
[327965811,1716726649635,-500.0,0.00027671,4]
[327965812,1716726649644,-500.0,0.00027671,4]
[327965813,1716726649654,-500.0,0.00027671,4]
[327965814,1716726649663,-500.0,0.00027671,4]
[327965815,1716726649672,-500.0,0.00027671,4]
[327965816,1716726649682,-500.0,0.00027671,4]
[327965817,1716726649691,-500.0,0.00027671,4]
[327965818,1716726649700,-500.0,0.00027671,4]
[327965819,1716726649710,-500.0,0.00027671,4]
[327965820,1716726649719,-500.0,0.00027671,4]
[327965821,1716726649728,-500.0,0.00027671,4]
[327965822,1716726649737,-500.0,0.00027671,4]
[327965823,1716726649746,-1715.79,0.00027671,4]
[327965824,1716726649756,-500.0,0.00027671,4]
[327965825,1716726649766,-500.0,0.00027671,4]
[327965826,1716726649775,-500.0,0.00027671,4]
[327965827,1716726649784,-500.0,0.00027671,4]
[327965828,1716726649793,-500.0,0.00027671,4]
[327965829,1716726649802,-500.0,0.00027671,4]
[327965830,1716726649812,-500.0,0.00027671,4]
[327965831,1716726649821,-1319.74,0.00027671,2]
[327965832,1716726649831,-500.0,0.00027671,4]
[327965833,1716726649840,-695.19,0.00027671,4]
[327965834,1716726649850,-500.0,0.00027671,4]
[327965835,1716726649860,-598.78142702,0.00027671,4]
[327965836,1716726649869,-500.0,0.00027671,4]
[327965837,1716726649879,-416.6131853,0.00027671,4]
[327965838,1716726649888,-500.0,0.00027671,4]
[327965839,1716726649897,-500.0,0.00027671,4]
[327965840,1716726649907,-500.0,0.00027671,4]
[327965841,1716726649916,-500.0,0.00027671,4]
[327965842,1716726649925,-500.0,0.00027671,4]
[327965843,1716726649934,-500.0,0.00027671,4]
[327965844,1716726649944,-500.0,0.00027671,4]
[327965845,1716726649953,-500.0,0.00027671,4]
[327965846,1716726649962,-500.0,0.00027671,4]
[327965847,1716726649972,-500.0,0.00027671,4]
[327965848,1716726649982,-500.0,0.00027671,4]
[327965849,1716726649991,-1272.62,0.00027671,4]
[327965850,1716726650000,-500.0,0.00027671,4]
[327965851,1716726650009,-500.0,0.00027671,4]
[327965852,1716726650019,-500.0,0.00027671,4]
[327965853,1716726650029,-500.0,0.00027671,4]
[327965854,1716726650038,-500.0,0.00027671,4]
[327965855,1716726650048,-500.0,0.00027671,4]
[327965856,1716726650057,-568.95782749,0.00027671,4]
[327965857,1716726650067,-500.0,0.00027671,4]
[327965858,1716726650077,-500.0,0.00027671,4]
[327965859,1716726650086,-500.0,0.00027671,4]
[327965860,1716726650096,-852.02,0.00027671,2]
[327965861,1716726650106,-500.0,0.00027671,4]
[327965862,1716726650116,-500.0,0.00027671,4]
[327965863,1716726650126,-500.0,0.00027671,4]
[327965864,1716726650135,-500.0,0.00027671,4]
[327965865,1716726650145,-539.12,0.00027671,4]
[327965866,1716726650155,-500.0,0.00027671,2]
[327965867,1716726650163,-500.0,0.00027671,4]
[327965868,1716726650173,-581.3005562,0.00027671,4]
[327965869,1716726650183,-513.8,0.00027671,4]
[327965870,1716726650192,-500.0,0.00027671,4]
[327965871,1716726650202,-500.0,0.00027671,2]
[327965872,1716726650211,-500.0,0.00027671,4]
[327965873,1716726650221,-505.03,0.00027671,4]
[327965874,1716726650230,-979.2,0.00027671,4]
[327965875,1716726650240,-716.2,0.00027671,4]
[327965876,1716726650249,-663.62,0.00027671,4]
[327965877,1716726650259,-500.0,0.00027671,4]
[327965878,1716726650269,-569.4,0.00027671,4]
[327965879,1716726650278,-500.0,0.00027671,4]
[327965880,1716726650287,-711.48,0.00027671,4]
[327965881,1716726650297,-500.0,0.00027671,4]
[327965882,1716726650306,-1427.74,0.00027671,4]
[327965883,1716726650317,-500.0,0.00027671,4]
[327965884,1716726650489,-500.0,0.00027671,4]
[327965885,1716726650525,-500.0,0.00027671,4]
[327965886,1716726650536,-1095.48,0.00027671,4]
[327965887,1716726650546,-500.0,0.00027671,4]
[327965888,1716726650556,-500.0,0.00027671,4]
[327965889,1716726650566,-500.0,0.00027671,4]
[327965890,1716726650576,-500.0,0.00027671,4]
[327965891,1716726650587,-1082.79,0.00027671,4]
[327965892,1716726650597,-500.0,0.00027671,4]
[327965893,1716726650609,-1095.66,0.00027671,4]
[327965894,1716726650619,-500.0,0.00027671,4]
[327965895,1716726650629,-500.0,0.00027671,4]
[327965896,1716726650639,-745.03,0.00027671,4]
[327965897,1716726650649,-903.28,0.00027671,4]
[327965898,1716726650659,-500.0,0.00027671,4]
[327965899,1716726650669,-1100.25,0.00027671,4]
[327965900,1716726650679,-500.0,0.00027671,4]
[327965901,1716726650688,-500.0,0.00027671,4]
[327965902,1716726650698,-500.0,0.00027671,4]
[327965903,1716726650710,-1021.61,0.00027671,4]
[327965904,1716726650720,-978.93,0.00027671,4]
[327965905,1716726650730,-1078.82,0.00027671,4]
[327965906,1716726650740,-500.0,0.00027671,4]
[327965907,1716726650750,-1395.14,0.00027671,4]
[327965908,1716726650760,-500.0,0.00027671,4]
[327965909,1716726650770,-572.16995417,0.00027671,4]
[327965910,1716726650782,-500.0,0.00027671,4]
[327965911,1716726650793,-500.0,0.00027671,4]
[327965912,1716726650804,-574.94372725,0.00027671,4]
[327965913,1716726650814,-1200.79,0.00027671,4]
[327965914,1716726650824,-1293.6,0.00027671,4]
[327965915,1716726650834,-500.0,0.00027671,4]
[327965916,1716726650843,-501.15,0.00027671,4]
[327965917,1716726650853,-500.0,0.00027671,4]
[327965918,1716726650862,-500.0,0.00027671,4]
[327965919,1716726650872,-500.0,0.00027671,4]
[327965920,1716726650882,-500.0,0.00027671,4]
[327965921,1716726650892,-500.0,0.00027671,4]
[327965922,1716726650902,-500.0,0.00027671,4]
[327965923,1716726650912,-190.57,0.00027671,4]
[327965924,1716726650922,-988.59,0.00027671,4]
[327965925,1716726650932,-500.0,0.00027671,4]
[327965926,1716726650941,-500.0,0.00027671,4]
[327965927,1716726650951,-1409.6,0.00027671,4]
[327965928,1716726650961,-500.0,0.00027671,4]
[327965929,1716726650971,-500.0,0.00027671,4]
[327965930,1716726650980,-542.94548762,0.00027671,4]
[327965931,1716726650989,-500.0,0.00027671,4]
[327965932,1716726650999,-500.0,0.00027671,4]
[327965933,1716726651011,-665.35,0.00027671,4]
[327965934,1716726651022,-500.0,0.00027671,4]
[327965935,1716726651032,-500.0,0.00027671,4]
[327965936,1716726651042,-964.14,0.00027671,4]
[327965937,1716726651052,-500.0,0.00027671,4]
[327965938,1716726651062,-1372.12,0.00027671,4]
[327965939,1716726651072,-508.19,0.00027671,4]
[327965940,1716726651082,-488.259841,0.00027671,7]
[327965941,1716726651092,-500.0,0.00027671,4]
[327965942,1716726651102,-500.0,0.00027671,4]
[327965943,1716726651112,-4825.69,0.00027671,4]
[327965944,1716726651122,-934.06,0.00027671,4]
[327965945,1716726651132,-488.259841,0.00027671,7]
[327965946,1716726651143,-500.0,0.00027671,4]
[327965947,1716726651153,-546.92,0.00027671,4]
[327965948,1716726651164,-531.24,0.00027671,4]
[327965949,1716726651174,-500.0,0.00027671,4]
[327965950,1716726651184,-500.0,0.00027671,4]
[327965951,1716726651194,-524.18,0.00027671,4]
[327965952,1716726651204,-500.0,0.00027671,4]
[327965953,1716726651213,-689.49,0.00027671,4]
[327965954,1716726651223,-1322.64,0.00027671,4]
[327965955,1716726651234,-500.0,0.00027671,4]
[327965956,1716726651243,-500.0,0.00027671,4]
[327965957,1716726651253,-748.21,0.00027671,4]
[327965958,1716726651264,-500.0,0.00027671,4]
[327965959,1716726651274,-569.7,0.00027671,4]
[327965960,1716726651285,-500.0,0.00027671,4]
[327965961,1716726651295,-576.05,0.00027671,4]
[327965962,1716726651305,-608.77,0.00027671,4]
[327965963,1716726651314,-500.0,0.00027671,4]
[327965964,1716726651325,-1117.54,0.00027671,4]
[327965965,1716726651335,-740.29,0.00027671,4]
[327965966,1716726651345,-849.63,0.00027671,4]
[327965967,1716726651356,-940.73,0.00027671,4]
[327965968,1716726651365,-500.0,0.00027671,4]
[327965969,1716726651375,-500.0,0.00027671,4]
[327965970,1716726651386,-500.0,0.00027671,4]
[327965971,1716726651396,-500.0,0.00027671,4]
[327965972,1716726651406,-500.0,0.00027671,4]
[327965973,1716726651416,-520.01,0.00027671,4]
[327965974,1716726651425,-996.37,0.00027671,4]
[327965975,1716726651435,-500.0,0.00027671,4]
[327965976,1716726651445,-518.69,0.00027671,4]
[327965977,1716726651456,-500.0,0.00027671,4]
[327965978,1716726651471,-500.0,0.00027671,4]
[327965979,1716726651481,-500.0,0.00027671,4]
[327965980,1716726651491,-1218.55,0.00027671,4]
[327965981,1716726651503,-668.66,0.00027671,4]
[327965982,1716726651513,-500.0,0.00027671,4]
[327965983,1716726651523,-500.0,0.00027671,4]
[327965984,1716726651533,-500.0,0.00027671,4]
[327965985,1716726651545,-788.57,0.00027671,4]
[327965986,1716726651555,-500.0,0.00027671,4]
[327965987,1716726651565,-500.0,0.00027671,4]
[327965988,1716726651575,-500.0,0.00027671,4]
[327965989,1716726651585,-500.0,0.00027671,4]
[327965990,1716726651595,-1777.79,0.00027671,4]
[327965991,1716726651605,-260.087286,0.00027671,7]
[327965992,1716726651614,-500.0,0.00027671,4]
[327965993,1716726651624,-500.0,0.00027671,4]
[327965994,1716726651634,-500.0,0.00027671,4]
[327965995,1716726651644,-683.86,0.00027671,4]
[327965996,1716726651654,-500.0,0.00027671,4]
[327965997,1716726651664,-500.0,0.00027671,4]
[327965998,1716726651674,-500.0,0.00027671,4]
[327965999,1716726651683,-500.0,0.00027671,4]
[327966000,1716726651693,-500.0,0.00027671,4]
[327966001,1716726651703,-500.0,0.00027671,4]
[327966002,1716726651713,-512.19,0.00027671,4]
[327966003,1716726651723,-539.29,0.00027671,4]
[327966004,1716726651733,-500.0,0.00027671,4]
[327966005,1716726651743,-500.0,0.00027671,4]
[327966006,1716726651753,-409.36467693,0.00027671,4]
[327966007,1716726651763,-577.13,0.00027671,4]
[327966008,1716726651773,-500.0,0.00027671,4]
[327966009,1716726651783,-500.0,0.00027671,4]
[327966010,1716726651793,-500.0,0.00027671,4]
[327966011,1716726651804,-693.81,0.00027671,4]
[327966012,1716726651813,-500.0,0.00027671,4]
[327966013,1716726651824,-553.46,0.00027671,4]
[327966014,1716726651834,-587.04,0.00027671,4]
[327966015,1716726651844,-500.0,0.00027671,4]
[327966016,1716726651853,-500.0,0.00027671,4]
[327966017,1716726651863,-500.0,0.00027671,4]
[327966018,1716726651873,-500.0,0.00027671,4]
[327966019,1716726651883,-500.0,0.00027671,4]
[327966020,1716726651893,-500.0,0.00027671,4]
[327966021,1716726651902,-500.0,0.00027671,4]
[327966022,1716726651913,-1256.52,0.00027671,4]
[327966023,1716726651924,-653.52,0.00027671,4]
[327966024,1716726651934,-500.0,0.00027671,4]
[327966025,1716726651946,-500.0,0.00027671,4]
[327966026,1716726651956,-151.0,0.00027671,7]
[327966027,1716726651966,-500.0,0.00027671,4]
[327966028,1716726651976,-531.91,0.00027671,4]
[327966029,1716726651986,-753.29,0.00027671,4]
[327966030,1716726651995,-500.0,0.00027671,4]
[327966031,1716726652004,-500.0,0.00027671,4]